[Event "*** Titled Tuesday Blitz"]
[Site "Chess.com"]
[Date "2021.02.02"]
[Round "5"]
[White "Zq1"]
[Black "joshdaruca"]
[Result "0-1"]
[WhiteElo "2513"]
[BlackElo "2727"]
[TimeControl "180+1"]
[EndTime "10:56:36 PST"]
[Termination "joshdaruca won by resignation"]

1. d4 {[%clk 0:03:00.9]} 1... Nf6 {[%clk 0:02:55.5]} 2. c4 {[%clk 0:03:00.8]}
2... e6 {[%clk 0:02:54]} 3. g3 {[%clk 0:03:00.3]} 3... d5 {[%clk 0:02:53]} 4.
Bg2 {[%clk 0:03:00.3]} 4... Bb4+ {[%clk 0:02:51.6]} 5. Nd2 {[%clk 0:02:57.1]}
5... O-O {[%clk 0:02:50.7]} 6. Nf3 {[%clk 0:02:56.1]} 6... b6 {[%clk 0:02:49.3]}
7. O-O {[%clk 0:02:54.6]} 7... a5 {[%clk 0:02:49.5]} 8. a3 {[%clk 0:02:53.5]}
8... Be7 {[%clk 0:02:48]} 9. b3 {[%clk 0:02:51.9]} 9... Bb7 {[%clk 0:02:47.6]}
10. Bb2 {[%clk 0:02:51]} 10... a4 {[%clk 0:02:45.8]} 11. b4 {[%clk 0:02:50]}
11... dxc4 {[%clk 0:02:45.3]} 12. Nxc4 {[%clk 0:02:48.7]} 12... Nbd7 {[%clk
0:02:40.1]} 13. Rc1 {[%clk 0:02:42.7]} 13... Ra7 {[%clk 0:02:39]} 14. b5 {[%clk
0:02:38.4]} 14... Qa8 {[%clk 0:02:37.9]} 15. Qd2 {[%clk 0:02:23.2]} 15... Rc8
{[%clk 0:02:38]} 16. Rfd1 {[%clk 0:02:15.3]} 16... Bd5 {[%clk 0:02:33.3]} 17.
Qd3 {[%clk 0:02:02.9]} 17... Be4 {[%clk 0:02:17.2]} 18. Qe3 {[%clk 0:01:59.7]}
18... c5 {[%clk 0:02:07.6]} 19. bxc6 {[%clk 0:01:56.1]} 19... Rxc6 {[%clk
0:02:06.2]} 20. Ne1 {[%clk 0:01:42.1]} 20... Bxg2 {[%clk 0:02:04.7]} 21. Nxg2
{[%clk 0:01:41.9]} 21... b5 {[%clk 0:02:04.3]} 22. Ne5 {[%clk 0:01:39.4]} 22...
Rxc1 {[%clk 0:02:04.3]} 23. Rxc1 {[%clk 0:01:37.5]} 23... Nd5 {[%clk 0:01:59.9]}
24. Qf3 {[%clk 0:01:33.6]} 24... Nxe5 {[%clk 0:01:59]} 25. dxe5 {[%clk
0:01:33.5]} 25... b4 {[%clk 0:01:59.4]} 26. e4 {[%clk 0:01:33.6]} 26... Nb6
{[%clk 0:01:58.5]} 27. axb4 {[%clk 0:01:32.1]} 27... a3 {[%clk 0:01:57]} 28. Bd4
{[%clk 0:01:31.1]} 28... a2 {[%clk 0:01:57.5]} 29. Ra1 {[%clk 0:01:27.7]} 29...
Ra3 {[%clk 0:01:56.5]} 30. Ne3 {[%clk 0:01:21.6]} 30... Nc4 {[%clk 0:01:55.3]}
31. b5 {[%clk 0:01:16.7]} 31... Nd2 {[%clk 0:01:50.4]} 32. Qd1 {[%clk
0:01:12.8]} 32... Nxe4 {[%clk 0:01:50.1]} 33. b6 {[%clk 0:00:57.9]} 33... Ng5
{[%clk 0:01:46.4]} 34. Qc2 {[%clk 0:00:48.7]} 34... Nf3+ {[%clk 0:01:44.6]} 35.
Kf1 {[%clk 0:00:47]} 35... Nxd4 {[%clk 0:01:44.4]} 0-1

[Event "*** Titled Tuesday Blitz"]
[Site "Chess.com"]
[Date "2021.02.02"]
[Round "5"]
[White "anon102030"]
[Black "Paralinch"]
[Result "0-1"]
[WhiteElo "2738"]
[BlackElo "2903"]
[TimeControl "180+1"]
[EndTime "10:56:42 PST"]
[Termination "Paralinch won by resignation"]

1. e4 {[%clk 0:03:00.9]} 1... c5 {[%clk 0:02:59.9]} 2. Nc3 {[%clk 0:02:59.4]}
2... d6 {[%clk 0:02:59.9]} 3. g3 {[%clk 0:02:59.9]} 3... g6 {[%clk 0:02:59.6]}
4. Bg2 {[%clk 0:03:00]} 4... Bg7 {[%clk 0:03:00]} 5. d3 {[%clk 0:03:00.6]} 5...
Nc6 {[%clk 0:03:00.2]} 6. Be3 {[%clk 0:03:00.8]} 6... Nf6 {[%clk 0:03:00.2]} 7.
h3 {[%clk 0:02:59.4]} 7... Rb8 {[%clk 0:03:00.2]} 8. f4 {[%clk 0:02:58.1]} 8...
O-O {[%clk 0:02:57.2]} 9. Nf3 {[%clk 0:02:54]} 9... b5 {[%clk 0:02:57]} 10. O-O
{[%clk 0:02:51.3]} 10... b4 {[%clk 0:02:52.7]} 11. Ne2 {[%clk 0:02:51.8]} 11...
a5 {[%clk 0:02:49.8]} 12. g4 {[%clk 0:02:50.5]} 12... a4 {[%clk 0:02:44]} 13.
Rb1 {[%clk 0:02:50.3]} 13... Ba6 {[%clk 0:02:41.3]} 14. b3 {[%clk 0:02:47.6]}
14... Na7 {[%clk 0:02:34.8]} 15. bxa4 {[%clk 0:02:31.1]} 15... Qa5 {[%clk
0:02:30]} 16. c4 {[%clk 0:01:52.2]} 16... bxc3 {[%clk 0:02:27.4]} 17. Qc2 {[%clk
0:01:51.8]} 17... Nd7 {[%clk 0:02:19.7]} 18. Rfc1 {[%clk 0:01:46.5]} 18... Nc6
{[%clk 0:02:14.5]} 19. a3 {[%clk 0:01:38.1]} 19... Rb2 {[%clk 0:01:47.1]} 20.
Rxb2 {[%clk 0:01:10]} 20... cxb2 {[%clk 0:01:48]} 21. Rb1 {[%clk 0:01:10.1]}
21... Rb8 {[%clk 0:01:47.8]} 22. Bd2 {[%clk 0:00:58.6]} 22... Qb6 {[%clk
0:01:47.2]} 23. Bc3 {[%clk 0:00:58]} 23... Bxd3 {[%clk 0:01:36.8]} 24. Qd1
{[%clk 0:00:35.4]} 24... Bxe2 {[%clk 0:01:32.2]} 0-1

[Event "*** Titled Tuesday Blitz"]
[Site "Chess.com"]
[Date "2021.02.02"]
[Round "5"]
[White "QuintilianoR"]
[Black "Savagelittlemole"]
[Result "1-0"]
[WhiteElo "2705"]
[BlackElo "2453"]
[TimeControl "180+1"]
[EndTime "10:56:43 PST"]
[Termination "QuintilianoR won by resignation"]

1. Nf3 {[%clk 0:03:00.9]} 1... Nf6 {[%clk 0:02:59.6]} 2. c4 {[%clk 0:02:59.9]}
2... g6 {[%clk 0:02:59]} 3. d4 {[%clk 0:02:58.6]} 3... Bg7 {[%clk 0:02:59.6]} 4.
Nc3 {[%clk 0:02:56.9]} 4... O-O {[%clk 0:03:00.1]} 5. e4 {[%clk 0:02:56.5]} 5...
d6 {[%clk 0:03:00.8]} 6. Be2 {[%clk 0:02:56.4]} 6... e5 {[%clk 0:03:00.6]} 7.
O-O {[%clk 0:02:56.1]} 7... Nc6 {[%clk 0:03:00.8]} 8. d5 {[%clk 0:02:55.8]} 8...
Ne7 {[%clk 0:03:01.4]} 9. b4 {[%clk 0:02:56.3]} 9... a5 {[%clk 0:02:59.8]} 10.
Ba3 {[%clk 0:02:55.9]} 10... Nh5 {[%clk 0:02:55.9]} 11. g3 {[%clk 0:02:50]}
11... f5 {[%clk 0:02:52.8]} 12. bxa5 {[%clk 0:02:36.8]} 12... f4 {[%clk
0:02:39.7]} 13. Ng5 {[%clk 0:02:24.8]} 13... h6 {[%clk 0:02:13.7]} 14. Ne6
{[%clk 0:02:20.4]} 14... Bxe6 {[%clk 0:02:13]} 15. dxe6 {[%clk 0:02:21.3]} 15...
Nf6 {[%clk 0:02:09.1]} 16. c5 {[%clk 0:02:16.3]} 16... Ne8 {[%clk 0:01:39.2]}
17. cxd6 {[%clk 0:02:12.9]} 17... Nxd6 {[%clk 0:01:36.3]} 18. Rb1 {[%clk
0:01:47.7]} 18... Rxa5 {[%clk 0:01:32.6]} 19. Bxd6 {[%clk 0:01:46.3]} 19... cxd6
{[%clk 0:01:24.1]} 20. Rxb7 {[%clk 0:01:45.7]} 20... Nc6 {[%clk 0:01:07.6]} 21.
Bc4 {[%clk 0:01:35.2]} 21... Kh7 {[%clk 0:00:56.9]} 22. Nd5 {[%clk 0:01:32.3]}
22... Re8 {[%clk 0:00:50.6]} 23. Rd7 {[%clk 0:01:29]} 23... Qg5 {[%clk
0:00:45.7]} 24. h4 {[%clk 0:01:26.6]} 24... Qh5 {[%clk 0:00:35.5]} 25. Nf6+
{[%clk 0:01:25.3]} 1-0

[Event "*** Titled Tuesday Blitz"]
[Site "Chess.com"]
[Date "2021.02.02"]
[Round "5"]
[White "Sergey85Rodchenkov"]
[Black "MarceloPlaya"]
[Result "1-0"]
[WhiteElo "2515"]
[BlackElo "2286"]
[TimeControl "180+1"]
[EndTime "10:56:52 PST"]
[Termination "Sergey85Rodchenkov won on time"]

1. e4 {[%clk 0:02:58.6]} 1... e6 {[%clk 0:01:16.2]} 2. d4 {[%clk 0:02:54.9]}
2... d5 {[%clk 0:01:15.7]} 3. Nd2 {[%clk 0:02:54.9]} 3... c5 {[%clk 0:01:11.1]}
4. Ngf3 {[%clk 0:02:52.6]} 4... Nc6 {[%clk 0:01:10]} 5. exd5 {[%clk 0:02:50.5]}
5... exd5 {[%clk 0:01:09]} 6. Bb5 {[%clk 0:02:49.1]} 6... Bd6 {[%clk 0:01:08]}
7. O-O {[%clk 0:02:48.7]} 7... Ne7 {[%clk 0:01:06.7]} 8. dxc5 {[%clk 0:02:49]}
8... Bxc5 {[%clk 0:01:05.8]} 9. Nb3 {[%clk 0:02:49.5]} 9... Bb6 {[%clk
0:01:00.1]} 10. c3 {[%clk 0:02:49.3]} 10... O-O {[%clk 0:00:58.1]} 11. Re1
{[%clk 0:02:49.2]} 11... Bg4 {[%clk 0:00:57.2]} 12. Be3 {[%clk 0:02:48.3]} 12...
Bxe3 {[%clk 0:00:55.1]} 13. Rxe3 {[%clk 0:02:47.7]} 13... Qd6 {[%clk 0:00:49.3]}
14. Be2 {[%clk 0:02:29.6]} 14... Rad8 {[%clk 0:00:42.8]} 15. h3 {[%clk 0:02:28]}
15... Bc8 {[%clk 0:00:19.1]} 16. Nfd4 {[%clk 0:02:27]} 16... Nxd4 {[%clk
0:00:18.7]} 17. Nxd4 {[%clk 0:02:26.5]} 17... a6 {[%clk 0:00:18.8]} 18. Bf3
{[%clk 0:02:26.1]} 18... Nf5 {[%clk 0:00:17.3]} 19. Nxf5 {[%clk 0:02:24.6]}
19... Bxf5 {[%clk 0:00:17.1]} 20. Qd4 {[%clk 0:02:24.8]} 20... Be6 {[%clk
0:00:16.1]} 21. Rae1 {[%clk 0:02:23]} 21... h6 {[%clk 0:00:13.9]} 22. Re5 {[%clk
0:02:20.2]} 22... b5 {[%clk 0:00:12.7]} 23. a3 {[%clk 0:02:19.6]} 23... Qc7
{[%clk 0:00:11.6]} 24. Rd1 {[%clk 0:02:14.7]} 24... Rfe8 {[%clk 0:00:10.1]} 25.
Re3 {[%clk 0:02:14.3]} 25... Qc4 {[%clk 0:00:06.5]} 26. Qd2 {[%clk 0:02:07.7]}
26... Rd7 {[%clk 0:00:03.8]} 27. Rd3 {[%clk 0:02:05.2]} 27... Red8 {[%clk
0:00:03.2]} 28. Rd4 {[%clk 0:02:05.5]} 28... Qb3 {[%clk 0:00:02.9]} 29. Re1
{[%clk 0:02:04.6]} 29... a5 {[%clk 0:00:01.5]} 30. Bd1 {[%clk 0:02:03.8]} 1-0

[Event "*** Titled Tuesday Blitz"]
[Site "Chess.com"]
[Date "2021.02.02"]
[Round "5"]
[White "ElGasanov"]
[Black "Genghis_K"]
[Result "1-0"]
[WhiteElo "2856"]
[BlackElo "2925"]
[TimeControl "180+1"]
[EndTime "10:56:54 PST"]
[Termination "ElGasanov won by resignation"]

1. d4 {[%clk 0:03:00.9]} 1... Nf6 {[%clk 0:02:55.6]} 2. c4 {[%clk 0:03:00.1]}
2... g6 {[%clk 0:02:56.2]} 3. Nc3 {[%clk 0:02:58.1]} 3... Bg7 {[%clk 0:02:56.2]}
4. Bg5 {[%clk 0:02:58.5]} 4... d6 {[%clk 0:02:55.7]} 5. e3 {[%clk 0:02:58.6]}
5... O-O {[%clk 0:02:51.5]} 6. Be2 {[%clk 0:02:59]} 6... c5 {[%clk 0:02:46.6]}
7. Nf3 {[%clk 0:02:55.8]} 7... h6 {[%clk 0:02:38.7]} 8. Bh4 {[%clk 0:02:52.5]}
8... g5 {[%clk 0:02:38.6]} 9. Bg3 {[%clk 0:02:50.8]} 9... Nh5 {[%clk 0:02:38.3]}
10. Qc2 {[%clk 0:02:41.5]} 10... cxd4 {[%clk 0:02:25.8]} 11. Nxd4 {[%clk
0:02:32.9]} 11... Nxg3 {[%clk 0:02:22.4]} 12. hxg3 {[%clk 0:02:33.8]} 12... Nc6
{[%clk 0:02:21.6]} 13. Rd1 {[%clk 0:02:23.5]} 13... Qa5 {[%clk 0:01:53.3]} 14.
O-O {[%clk 0:02:15.3]} 14... Bd7 {[%clk 0:01:44.4]} 15. Nd5 {[%clk 0:02:04.8]}
15... Rfe8 {[%clk 0:01:42]} 16. a3 {[%clk 0:02:00.1]} 16... Rac8 {[%clk
0:01:39.2]} 17. Nf5 {[%clk 0:01:38.6]} 17... Bxf5 {[%clk 0:00:57.9]} 18. Qxf5
{[%clk 0:01:39.5]} 18... Ne5 {[%clk 0:00:42.5]} 19. Nxe7+ {[%clk 0:01:35.5]}
19... Rxe7 {[%clk 0:00:40.6]} 20. Qxc8+ {[%clk 0:01:36.1]} 20... Bf8 {[%clk
0:00:36.1]} 21. Rxd6 {[%clk 0:01:32.6]} 21... Rc7 {[%clk 0:00:31.7]} 22. Qe8
{[%clk 0:01:30.2]} 22... Kg7 {[%clk 0:00:27.1]} 23. b4 {[%clk 0:01:23.8]} 23...
Qxa3 {[%clk 0:00:23.9]} 24. Qxe5+ {[%clk 0:01:23]} 1-0

[Event "*** Titled Tuesday Blitz"]
[Site "Chess.com"]
[Date "2021.02.02"]
[Round "5"]
[White "mjray79"]
[Black "Kostya_Nikologorskiy"]
[Result "0-1"]
[WhiteElo "2505"]
[BlackElo "2686"]
[TimeControl "180+1"]
[EndTime "10:56:56 PST"]
[Termination "Kostya_Nikologorskiy won by checkmate"]

1. d4 {[%clk 0:03:00.9]} 1... d5 {[%clk 0:02:57.5]} 2. c4 {[%clk 0:03:01.1]}
2... dxc4 {[%clk 0:02:57.9]} 3. Nf3 {[%clk 0:03:01.1]} 3... c5 {[%clk
0:02:58.2]} 4. e3 {[%clk 0:03:00.1]} 4... cxd4 {[%clk 0:02:55]} 5. exd4 {[%clk
0:03:01]} 5... Be6 {[%clk 0:02:47.5]} 6. Nc3 {[%clk 0:02:55.1]} 6... Nf6 {[%clk
0:02:44.8]} 7. Bf4 {[%clk 0:02:48.1]} 7... Nc6 {[%clk 0:02:38.7]} 8. Be2 {[%clk
0:02:45.2]} 8... Nd5 {[%clk 0:02:34]} 9. Bd2 {[%clk 0:02:41.2]} 9... Nxc3 {[%clk
0:02:31.1]} 10. Bxc3 {[%clk 0:02:36.5]} 10... Bd5 {[%clk 0:02:31]} 11. O-O
{[%clk 0:02:35.4]} 11... e6 {[%clk 0:02:27.9]} 12. Qa4 {[%clk 0:02:29.7]} 12...
a6 {[%clk 0:02:22.7]} 13. Rfd1 {[%clk 0:02:25.1]} 13... b5 {[%clk 0:02:21.1]}
14. Qc2 {[%clk 0:02:25]} 14... Bd6 {[%clk 0:02:15]} 15. b3 {[%clk 0:02:17.3]}
15... cxb3 {[%clk 0:02:06.7]} 16. axb3 {[%clk 0:02:16.9]} 16... O-O {[%clk
0:02:04.7]} 17. Ne5 {[%clk 0:01:57.4]} 17... Bxe5 {[%clk 0:01:59]} 18. dxe5
{[%clk 0:01:56.8]} 18... Qg5 {[%clk 0:01:59.9]} 19. f3 {[%clk 0:01:54.1]} 19...
Nxe5 {[%clk 0:01:51.4]} 20. Kh1 {[%clk 0:01:29.8]} 20... Rac8 {[%clk 0:01:40]}
21. Qb2 {[%clk 0:01:29]} 21... Ng6 {[%clk 0:01:28.6]} 22. Bxg7 {[%clk
0:01:25.6]} 22... Nh4 {[%clk 0:01:27.3]} 23. g3 {[%clk 0:01:12.8]} 23... Nxf3
{[%clk 0:01:19.3]} 24. Bf6 {[%clk 0:00:31.4]} 24... Nd2+ {[%clk 0:01:15.6]} 25.
Kg1 {[%clk 0:00:28.3]} 25... Qe3# {[%clk 0:01:15.1]} 0-1

[Event "*** Titled Tuesday Blitz"]
[Site "Chess.com"]
[Date "2021.02.02"]
[Round "5"]
[White "MuhittinBuker"]
[Black "ruvat"]
[Result "0-1"]
[WhiteElo "2137"]
[BlackElo "2333"]
[TimeControl "180+1"]
[EndTime "10:56:57 PST"]
[Termination "ruvat won by resignation"]

1. d4 {[%clk 0:03:00.7]} 1... d6 {[%clk 0:02:59.7]} 2. c4 {[%clk 0:02:59.7]}
2... e5 {[%clk 0:02:59.6]} 3. Nf3 {[%clk 0:02:57.7]} 3... e4 {[%clk 0:02:58.8]}
4. Nfd2 {[%clk 0:02:55.9]} 4... f5 {[%clk 0:02:58.1]} 5. e3 {[%clk 0:02:54.3]}
5... Nf6 {[%clk 0:02:57.9]} 6. g3 {[%clk 0:02:51.2]} 6... g6 {[%clk 0:02:57.3]}
7. Bg2 {[%clk 0:02:51.3]} 7... Bg7 {[%clk 0:02:56.7]} 8. Nc3 {[%clk 0:02:50.4]}
8... O-O {[%clk 0:02:53.1]} 9. O-O {[%clk 0:02:49]} 9... c5 {[%clk 0:02:48.4]}
10. d5 {[%clk 0:02:47.1]} 10... Ng4 {[%clk 0:02:39.4]} 11. Ndxe4 {[%clk
0:02:36.2]} 11... fxe4 {[%clk 0:02:35.3]} 12. Nxe4 {[%clk 0:02:34.8]} 12... Ne5
{[%clk 0:02:30.4]} 13. f4 {[%clk 0:02:31.1]} 13... Nxc4 {[%clk 0:02:26.6]} 14.
Ng5 {[%clk 0:02:24.9]} 14... Nb6 {[%clk 0:02:04.5]} 15. e4 {[%clk 0:02:13.5]}
15... Qe7 {[%clk 0:02:02.1]} 16. Qc2 {[%clk 0:02:08.7]} 16... Na6 {[%clk
0:01:59.7]} 17. a3 {[%clk 0:02:04.5]} 17... Nc7 {[%clk 0:01:50.6]} 18. Bd2
{[%clk 0:02:01.3]} 18... h6 {[%clk 0:01:49]} 19. Nf3 {[%clk 0:01:58.3]} 19...
Bg4 {[%clk 0:01:42.7]} 20. Rae1 {[%clk 0:01:53]} 20... Rae8 {[%clk 0:01:40.7]}
21. Nh4 {[%clk 0:01:43.9]} 21... Qf7 {[%clk 0:01:37.8]} 22. h3 {[%clk
0:01:34.1]} 22... Bd7 {[%clk 0:01:36.7]} 23. g4 {[%clk 0:01:32.3]} 23... Bb5
{[%clk 0:01:33.5]} 24. Rf3 {[%clk 0:01:21.2]} 24... Bf6 {[%clk 0:01:29.9]} 25.
g5 {[%clk 0:01:13]} 25... hxg5 {[%clk 0:01:25]} 26. fxg5 {[%clk 0:01:12]} 26...
Bd4+ {[%clk 0:01:24.5]} 27. Kh1 {[%clk 0:01:07.1]} 27... Qh7 {[%clk 0:01:24.2]}
28. Rxf8+ {[%clk 0:01:01]} 28... Rxf8 {[%clk 0:01:22.8]} 29. Nf3 {[%clk
0:00:58]} 29... Rxf3 {[%clk 0:01:17]} 30. e5 {[%clk 0:00:46.5]} 0-1

[Event "*** Titled Tuesday Blitz"]
[Site "Chess.com"]
[Date "2021.02.02"]
[Round "5"]
[White "chescomhuynya"]
[Black "leoduarte"]
[Result "1-0"]
[WhiteElo "2513"]
[BlackElo "2347"]
[TimeControl "180+1"]
[EndTime "10:56:59 PST"]
[Termination "chescomhuynya won by resignation"]

1. e4 {[%clk 0:03:00.9]} 1... c5 {[%clk 0:03:00]} 2. Nf3 {[%clk 0:03:01]} 2...
Nc6 {[%clk 0:03:00.5]} 3. c3 {[%clk 0:03:00.7]} 3... Nf6 {[%clk 0:02:59.1]} 4.
e5 {[%clk 0:03:00.5]} 4... Nd5 {[%clk 0:02:59.3]} 5. Bc4 {[%clk 0:03:01]} 5...
Nb6 {[%clk 0:02:54.9]} 6. Bb3 {[%clk 0:03:01.3]} 6... d5 {[%clk 0:02:52.1]} 7.
exd6 {[%clk 0:03:01.4]} 7... Qxd6 {[%clk 0:02:51.3]} 8. O-O {[%clk 0:02:54.2]}
8... Be6 {[%clk 0:02:36.4]} 9. Bxe6 {[%clk 0:02:50]} 9... Qxe6 {[%clk
0:02:35.7]} 10. Na3 {[%clk 0:02:45.2]} 10... Qd7 {[%clk 0:02:22.7]} 11. Nc2
{[%clk 0:02:43.8]} 11... e6 {[%clk 0:02:19.7]} 12. d4 {[%clk 0:02:44.1]} 12...
cxd4 {[%clk 0:02:19.7]} 13. Ncxd4 {[%clk 0:02:44.4]} 13... Nxd4 {[%clk
0:02:19.9]} 14. Nxd4 {[%clk 0:02:44.8]} 14... Be7 {[%clk 0:02:17.9]} 15. Qf3
{[%clk 0:02:37.4]} 15... O-O {[%clk 0:02:05.4]} 16. Rd1 {[%clk 0:02:37.6]} 16...
Rfd8 {[%clk 0:01:59.1]} 17. Be3 {[%clk 0:02:33.8]} 17... Qd5 {[%clk 0:01:43.8]}
18. Qg4 {[%clk 0:02:02.6]} 18... h5 {[%clk 0:01:16.9]} 19. Qg3 {[%clk
0:01:57.7]} 19... Qe4 {[%clk 0:01:12.3]} 20. Re1 {[%clk 0:01:47.8]} 20... h4
{[%clk 0:01:05.9]} 21. Qh3 {[%clk 0:01:46.7]} 21... Qg6 {[%clk 0:00:57.5]} 22.
Nf3 {[%clk 0:01:46.2]} 22... Qh5 {[%clk 0:00:49.6]} 23. Bd4 {[%clk 0:01:42]}
23... Nd5 {[%clk 0:00:38.8]} 24. Re4 {[%clk 0:01:38.7]} 24... Nf6 {[%clk
0:00:31.3]} 25. Rxh4 {[%clk 0:01:37.9]} 1-0

[Event "*** Titled Tuesday Blitz"]
[Site "Chess.com"]
[Date "2021.02.02"]
[Round "5"]
[White "Chuchofrio1"]
[Black "jens1102"]
[Result "1-0"]
[WhiteElo "2272"]
[BlackElo "2419"]
[TimeControl "180+1"]
[EndTime "10:57:01 PST"]
[Termination "Chuchofrio1 won by checkmate"]

1. e4 {[%clk 0:03:00.9]} 1... e5 {[%clk 0:02:57.7]} 2. Nf3 {[%clk 0:03:00.6]}
2... Nc6 {[%clk 0:02:57.1]} 3. Bb5 {[%clk 0:02:58]} 3... a6 {[%clk 0:02:56.7]}
4. Ba4 {[%clk 0:02:58]} 4... Nf6 {[%clk 0:02:56.6]} 5. O-O {[%clk 0:02:57.7]}
5... Nxe4 {[%clk 0:02:57.2]} 6. d4 {[%clk 0:02:56.5]} 6... b5 {[%clk 0:02:57.4]}
7. Re1 {[%clk 0:02:50.2]} 7... bxa4 {[%clk 0:02:56]} 8. Rxe4 {[%clk 0:02:49.7]}
8... d5 {[%clk 0:02:56.8]} 9. Re1 {[%clk 0:02:48.4]} 9... e4 {[%clk 0:02:57.1]}
10. Ne5 {[%clk 0:02:46.7]} 10... Nxe5 {[%clk 0:02:52.9]} 11. dxe5 {[%clk
0:02:47.6]} 11... Bc5 {[%clk 0:02:52.2]} 12. Nc3 {[%clk 0:02:42.4]} 12... c6
{[%clk 0:02:51.5]} 13. Nxa4 {[%clk 0:02:33.1]} 13... Ba7 {[%clk 0:02:51.5]} 14.
Qh5 {[%clk 0:02:30.9]} 14... Qd7 {[%clk 0:02:44.7]} 15. Qg5 {[%clk 0:02:26]}
15... Qf5 {[%clk 0:02:41.2]} 16. Qg3 {[%clk 0:02:21]} 16... h5 {[%clk
0:02:35.1]} 17. Be3 {[%clk 0:02:17.1]} 17... Bxe3 {[%clk 0:02:30]} 18. fxe3
{[%clk 0:02:18]} 18... Qg4 {[%clk 0:02:26.1]} 19. Qf2 {[%clk 0:02:15.6]} 19...
h4 {[%clk 0:02:22.3]} 20. Rf1 {[%clk 0:02:13.8]} 20... Qg6 {[%clk 0:02:21.5]}
21. Nb6 {[%clk 0:01:59.7]} 21... Rb8 {[%clk 0:02:19.5]} 22. Nxc8 {[%clk
0:01:58.8]} 22... Rxc8 {[%clk 0:02:20.4]} 23. h3 {[%clk 0:01:59.1]} 23... Rc7
{[%clk 0:02:11.2]} 24. c4 {[%clk 0:01:54.7]} 24... dxc4 {[%clk 0:02:07.8]} 25.
Rac1 {[%clk 0:01:53]} 25... Re7 {[%clk 0:02:01.9]} 26. Rxc4 {[%clk 0:01:51.5]}
26... Rxe5 {[%clk 0:01:58.2]} 27. Qf4 {[%clk 0:01:50.1]} 27... Rg5 {[%clk
0:01:35]} 28. Qb8+ {[%clk 0:01:39.8]} 28... Ke7 {[%clk 0:01:29.4]} 29. Qc7+
{[%clk 0:01:37.9]} 29... Ke8 {[%clk 0:01:22.5]} 30. Rxc6 {[%clk 0:01:24.6]}
30... f6 {[%clk 0:00:40.6]} 31. Qc8+ {[%clk 0:01:18.8]} 31... Kf7 {[%clk
0:00:40.2]} 32. Rc7# {[%clk 0:01:18.1]} 1-0

[Event "*** Titled Tuesday Blitz"]
[Site "Chess.com"]
[Date "2021.02.02"]
[Round "5"]
[White "Kobalia"]
[Black "MF1966Idrisov"]
[Result "1-0"]
[WhiteElo "2699"]
[BlackElo "2402"]
[TimeControl "180+1"]
[EndTime "10:57:04 PST"]
[Termination "Kobalia won by resignation"]

1. e4 {[%clk 0:03:00.9]} 1... d5 {[%clk 0:02:59.7]} 2. exd5 {[%clk 0:03:00.8]}
2... Qxd5 {[%clk 0:02:59.6]} 3. Nc3 {[%clk 0:03:00.5]} 3... Qd6 {[%clk
0:02:59.7]} 4. d4 {[%clk 0:03:00.7]} 4... a6 {[%clk 0:02:59.9]} 5. g3 {[%clk
0:02:59.2]} 5... Nf6 {[%clk 0:02:59.5]} 6. Bg2 {[%clk 0:02:59]} 6... Bg4 {[%clk
0:02:34.9]} 7. Nf3 {[%clk 0:02:44.1]} 7... e6 {[%clk 0:02:27.6]} 8. O-O {[%clk
0:02:37.3]} 8... Nc6 {[%clk 0:02:23.2]} 9. Bf4 {[%clk 0:02:35.3]} 9... Qd7
{[%clk 0:02:23.2]} 10. h3 {[%clk 0:02:33.6]} 10... Bxf3 {[%clk 0:02:18.4]} 11.
Qxf3 {[%clk 0:02:32.7]} 11... Bd6 {[%clk 0:02:16.1]} 12. d5 {[%clk 0:02:12.5]}
12... exd5 {[%clk 0:02:13.5]} 13. Rfe1+ {[%clk 0:02:11]} 13... Ne7 {[%clk
0:02:13.2]} 14. Bg5 {[%clk 0:02:10.5]} 14... O-O {[%clk 0:01:54.6]} 15. Bxf6
{[%clk 0:02:09.7]} 15... gxf6 {[%clk 0:01:54.8]} 16. Rxe7 {[%clk 0:01:47.4]}
16... Bxe7 {[%clk 0:01:40.4]} 17. Nxd5 {[%clk 0:01:46.8]} 17... Bd8 {[%clk
0:01:01]} 18. Rd1 {[%clk 0:01:34.5]} 18... Qe6 {[%clk 0:01:00.8]} 19. Rd4 {[%clk
0:01:33.3]} 19... f5 {[%clk 0:00:56]} 20. Rf4 {[%clk 0:01:32.3]} 20... c6 {[%clk
0:00:53.9]} 21. Ne3 {[%clk 0:01:27.4]} 21... Bb6 {[%clk 0:00:49.4]} 22. Nxf5
{[%clk 0:01:24.6]} 22... Rad8 {[%clk 0:00:35.9]} 23. Qg4+ {[%clk 0:01:21.4]} 1-0

[Event "*** Titled Tuesday Blitz"]
[Site "Chess.com"]
[Date "2021.02.02"]
[Round "5"]
[White "ClauSanLuis"]
[Black "NovikovaGalina"]
[Result "1-0"]
[WhiteElo "2182"]
[BlackElo "2250"]
[TimeControl "180+1"]
[EndTime "10:57:07 PST"]
[Termination "ClauSanLuis won by resignation"]

1. d4 {[%clk 0:03:00.9]} 1... d5 {[%clk 0:02:43]} 2. Bg5 {[%clk 0:03:00.9]} 2...
Nc6 {[%clk 0:02:36.2]} 3. e3 {[%clk 0:03:00]} 3... Bf5 {[%clk 0:02:34.3]} 4. Bb5
{[%clk 0:02:58.6]} 4... h6 {[%clk 0:02:27.7]} 5. Bxc6+ {[%clk 0:02:57.3]} 5...
bxc6 {[%clk 0:02:27.3]} 6. Bh4 {[%clk 0:02:57.1]} 6... Nf6 {[%clk 0:02:25]} 7.
Bxf6 {[%clk 0:02:54.6]} 7... exf6 {[%clk 0:02:25.9]} 8. Nd2 {[%clk 0:02:53]}
8... Rb8 {[%clk 0:02:25]} 9. Nb3 {[%clk 0:02:46.2]} 9... a5 {[%clk 0:02:16.6]}
10. a4 {[%clk 0:02:44.7]} 10... Rxb3 {[%clk 0:02:12]} 11. cxb3 {[%clk
0:02:43.3]} 11... Bb4+ {[%clk 0:02:12.2]} 12. Kf1 {[%clk 0:02:36.8]} 12... O-O
{[%clk 0:02:11.5]} 13. g3 {[%clk 0:02:30]} 13... Be4 {[%clk 0:02:00.3]} 14. f3
{[%clk 0:02:28.1]} 14... Bg6 {[%clk 0:01:59.9]} 15. Kg2 {[%clk 0:02:27.8]} 15...
Re8 {[%clk 0:01:59.5]} 16. Qc1 {[%clk 0:02:17.7]} 16... c5 {[%clk 0:01:47.3]}
17. Ne2 {[%clk 0:02:09.4]} 17... cxd4 {[%clk 0:01:42.5]} 18. Nxd4 {[%clk
0:02:08]} 18... c5 {[%clk 0:01:42.6]} 19. Nc6 {[%clk 0:02:06]} 19... Qd6 {[%clk
0:01:37.7]} 20. Nxb4 {[%clk 0:02:06]} 20... axb4 {[%clk 0:01:38.6]} 21. Rd1
{[%clk 0:02:02.7]} 21... Qe5 {[%clk 0:01:30.2]} 22. Qd2 {[%clk 0:01:52.4]} 22...
Rd8 {[%clk 0:01:16.4]} 23. a5 {[%clk 0:01:32.5]} 23... d4 {[%clk 0:01:09.7]} 24.
exd4 {[%clk 0:01:31]} 24... Rxd4 {[%clk 0:01:10.6]} 25. Qf2 {[%clk 0:01:28.5]}
25... Rxd1 {[%clk 0:01:04.6]} 26. Rxd1 {[%clk 0:01:27.5]} 26... c4 {[%clk
0:01:01.8]} 27. bxc4 {[%clk 0:01:26.3]} 27... Qxa5 {[%clk 0:01:02.1]} 28. c5
{[%clk 0:01:25.9]} 28... b3 {[%clk 0:01:01.2]} 29. c6 {[%clk 0:01:23.3]} 29...
Bc2 {[%clk 0:00:55]} 30. Rd7 {[%clk 0:01:19.5]} 30... Qb5 {[%clk 0:00:45.5]} 31.
Rd8+ {[%clk 0:01:15.1]} 31... Kh7 {[%clk 0:00:44.9]} 32. c7 {[%clk 0:01:15.3]}
1-0